bitfinex/quotes_SOLUSD_20260108
["timestamp","ask_amount","ask_price","bid_price","bid_amount"]
[1767850486744,5.37962609,137.2,137.19,2.89677834]
[1767850486934,7.28809853,137.21,137.19,2.89677834]
[1767850487324,7.28809853,137.21,137.19,0.72012843]
[1767850487626,7.28809853,137.21,137.2,2.17664991]
[1767850487940,7.2875674,137.22,137.2,2.17664991]
[1767850488130,7.2875674,137.22,137.21,2.17664991]
[1767850488521,7.2875674,137.22,137.19,0.72012843]
[1767850488840,7.2875674,137.22,137.21,2.17664991]
[1767850489036,7.2875674,137.22,137.2,2.17664991]
[1767850489342,0.02683509,137.21,137.2,2.17664991]
[1767850489848,25.50532088,137.23,137.2,2.89677834]
[1767850490447,25.50532088,137.23,137.2,2.17664991]
[1767850492425,18.21828452,137.23,137.2,2.17664991]
[1767850494535,25.50532088,137.23,137.2,3.40345474]
[1767850494935,25.50532088,137.23,137.2,3.34345476]
[1767850498943,5.39634501,137.22,137.2,3.34345476]
[1767850499129,5.39634501,137.21,137.2,3.34345476]
[1767850499332,25.50532088,137.23,137.2,3.34345476]
[1767850500237,4.86256546,137.22,137.2,3.34345476]
[1767850501844,4.86256546,137.22,137.2,4.06358319]
[1767850502454,7.28656,137.24,137.21,3.40345474]
[1767850502639,7.28656,137.24,137.22,3.40345474]
[1767850503038,0.09945176,137.23,137.14,107.71826481]
[1767850503336,0.14372928,137.22,137.19,3.40345474]
[1767850504473,7.28809853,137.21,137.19,3.40345474]
[1767850504681,7.38799307,137.21,137.19,3.40345474]
[1767850505534,0.09989454,137.21,137.19,3.40345474]
[1767850506061,0.09989454,137.21,137.2,3.40345474]
[1767850506231,0.09989454,137.21,137.18,0.7168108]
[1767850506433,0.09989454,137.21,137.2,3.40345474]
[1767850506952,7.43220026,137.22,137.2,3.40345474]
[1767850507334,7.28726011,137.23,137.21,4.12026554]
[1767850507539,7.28726011,137.23,137.17,7.2897323]
[1767850507751,7.38626011,137.23,137.21,3.40345474]
[1767850509049,7.38626011,137.23,137.2,4.12026554]
[1767850509362,0.099,137.23,137.2,4.12026554]
[1767850511463,5.40740302,137.22,137.2,4.12026554]
[1767850511641,5.40740302,137.21,137.2,4.12026554]
[1767850511842,7.38649353,137.23,137.2,4.12026554]
[1767850514151,0.099,137.23,137.2,4.12026554]
[1767850514360,4.96344489,137.23,137.2,4.12026554]
[1767850516565,7.2875674,137.22,137.2,4.12026554]
[1767850517145,7.2875674,137.22,137.21,3.40345474]
[1767850518860,7.38654047,137.23,137.21,3.40345474]
[1767850519066,7.28754047,137.23,137.21,4.12026554]
[1767850519448,7.28754047,137.23,137.16,18.22637772]
[1767850519449,7.43060735,137.25,137.22,4.12026554]
[1767850519647,4.864166,137.24,137.22,4.12026554]
[1767850520444,4.864166,137.24,137.23,0.7168108]
[1767850520664,4.864166,137.24,137.22,3.40345474]
[1767850520875,12.15086384,137.24,137.22,3.40345474]
[1767850521049,7.28669784,137.24,137.22,3.40345474]
[1767850521648,7.56998166,137.24,137.22,3.40345474]
[1767850521852,4.86351036,137.23,137.22,3.40345474]
[1767850522071,7.56998166,137.24,137.22,3.40345474]
[1767850523975,5.40314841,137.23,137.22,3.40345474]
[1767850524161,7.56998166,137.24,137.22,3.40345474]
[1767850525656,7.56998166,137.24,137.23,3.40345474]
[1767850525874,7.56998166,137.24,137.23,3.34345475]
[1767850528675,0.28328382,137.25,137.23,3.34345475]
[1767850529078,0.28328382,137.25,137.24,3.40345474]
[1767850529778,7.56925831,137.25,137.24,3.40345474]
[1767850530003,29.34730864,137.28,137.23,0.7168108]
[1767850530004,0.67529838,137.27,137.23,0.7168108]
[1767850530155,0.67529838,137.27,137.25,3.40345474]
[1767850530356,0.67529838,137.27,137.24,4.12026554]
[1767850530964,0.67529838,137.27,137.24,3.40345474]
[1767850531160,0.28328382,137.26,137.24,3.40345474]
[1767850531365,0.67529838,137.28,137.25,4.12026554]
[1767850531565,0.67529838,137.28,137.26,3.40345474]
[1767850532559,7.95975318,137.28,137.26,3.40345474]
[1767850532875,2.40744215,137.27,137.24,0.7168108]
[1767850533068,7.2844548,137.28,137.24,0.7168108]
[1767850533882,7.2844548,137.28,137.26,4.10932146]
[1767850534380,7.2844548,137.28,137.26,3.40345474]
[1767850535477,0.67979409,137.28,137.26,3.40345474]
[1767850536182,5.40647436,137.27,137.26,3.40345474]
[1767850536381,0.67979409,137.28,137.26,3.40345474]
[1767850538182,0.67979409,137.28,137.26,4.10932146]
[1767850538183,7.28487706,137.28,137.26,4.10932146]
[1767850538680,7.96467115,137.28,137.26,3.40345474]
[1767850544086,0.67979409,137.27,137.26,3.40345474]
[1767850544775,0.67979409,137.28,137.26,3.40345474]
[1767850545470,7.96469507,137.28,137.26,3.40345474]
[1767850552390,7.96469507,137.28,137.26,4.10932146]
[1767850553893,7.96469507,137.28,137.26,0.70586672]
[1767850553894,7.28490098,137.28,137.26,0.70586672]
[1767850554095,7.28490098,137.28,137.23,7.2869926]
[1767850554096,18.20985808,137.29,137.27,3.40345474]
[1767850554283,0.67979409,137.28,137.22,7.28748136]
[1767850554474,0.67979409,137.28,137.2,3.40345474]
[1767850554678,0.67979409,137.26,137.19,7.28894296]
[1767850554975,0.67979409,137.26,137.22,3.40345474]
[1767850555772,7.96576858,137.25,137.22,3.40345474]
[1767850556179,7.96576858,137.25,137.23,3.40345474]
[1767850556588,7.96576858,137.25,137.23,2.17714429]
[1767850559994,7.96523777,137.26,137.23,2.80396719]
[1767850560180,21.26491399,137.27,137.24,2.80396719]
[1767850560382,5.23269033,137.26,137.24,2.80396719]
[1767850560607,21.26491399,137.27,137.24,2.80396719]
[1767850560802,5.23226436,137.26,137.24,2.80396719]
[1767850561007,0.67979409,137.26,137.24,2.17714429]
[1767850561897,0.67979409,137.26,137.22,0.6268229]
[1767850562105,0.68908926,137.24,137.21,0.6268229]
[1767850562286,0.68908926,137.24,137.22,2.17714429]
[1767850562482,0.68908926,137.24,137.21,2.17714429]
[1767850564194,7.97569212,137.24,137.21,2.17714429]
[1767850564395,7.97569212,137.24,137.21,2.80396719]
[1767850565297,7.28660286,137.24,137.22,0.6268229]
[1767850566509,7.28660286,137.24,137.21,2.80396719]
[1767850566809,7.95120413,137.24,137.21,2.80396719]
[1767850567602,0.66460127,137.24,137.21,2.80396719]
[1767850567799,7.95069344,137.25,137.22,0.6268229]
[1767850568109,7.95069344,137.25,137.22,2.80396719]
[1767850568906,0.66460127,137.24,137.21,0.6268229]
[1767850569090,0.66460127,137.24,137.22,2.17714429]
[1767850569713,0.66460127,137.24,137.21,2.17714429]
[1767850569921,7.951325,137.24,137.21,2.80396719]
[1767850570721,0.66460127,137.23,137.21,2.17714429]
[1767850572514,0.66460127,137.23,137.2,0.6268229]
[1767850572808,0.66460127,137.23,137.21,2.17714429]
[1767850573588,0.66460127,137.23,137.19,7.28907174]
[1767850573589,0.66460127,137.22,137.19,2.17714429]
[1767850573793,0.66460127,137.22,137.18,2.17714429]
[1767850574510,0.66460127,137.22,137.15,18.22751945]
[1767850574511,0.66460127,137.17,137.15,2.17714429]
[1767850575016,7.95429364,137.18,137.15,2.88721259]
[1767850581998,0.66460127,137.17,137.15,2.17714429]
[1767850582704,0.66460127,137.17,137.14,17.1765927]
[1767850582901,0.66460127,137.17,137.15,2.17714429]
[1767850584414,7.95376228,137.19,137.16,0.7100683]
[1767850585401,7.28916101,137.19,137.16,0.7100683]
[1767850585602,7.28916101,137.19,137.17,0.7100683]
[1767850599930,0.68229114,137.18,137.14,14.28938011]
[1767850600129,0.68229114,137.18,137.14,16.4665244]
[1767850600809,26.19435469,137.19,137.14,16.4665244]
[1767850602032,26.19435469,137.19,137.15,0.6417546]
[1767850605034,0.68229114,137.18,137.14,17.108279]
[1767850605739,0.68229114,137.18,137.15,0.6417546]
[1767850606115,7.97218984,137.18,137.15,0.6417546]
[1767850607938,0.68229114,137.17,137.13,0.2]
[1767850608136,0.68229114,137.12,137.1,1e-08]
[1767850608317,0.68229114,137.11,137.1,1e-08]
[1767850608636,0.96661428,137.11,137.08,0.85735698]
[1767850608834,14.00229114,137.12,137.08,0.85735698]
[1767850609032,0.96661428,137.13,137.09,0.69843697]
[1767850609220,0.28432314,137.15,137.11,0.69843697]
[1767850609426,13.60432314,137.15,137.12,0.69843697]
[1767850609737,14.00229114,137.15,137.12,2.75558133]
[1767850609941,21.29377983,137.15,137.12,2.75558133]
[1767850610236,21.29377983,137.15,137.11,2.17714429]
[1767850610438,7.97377983,137.15,137.1,2.17714429]
[1767850610818,0.68229114,137.14,137.1,2.17714429]
[1767850611439,7.97377983,137.15,137.1,2.17714429]
[1767850611639,7.97377983,137.15,137.11,0.69843697]
[1767850612438,7.97377983,137.15,137.11,2.87558126]
[1767850614243,7.97377983,137.15,137.12,0.69843697]
[1767850615633,7.97377983,137.15,137.11,2.17714429]
[1767850615829,7.97377983,137.15,137.11,2.87558126]
[1767850616142,0.68229114,137.14,137.12,2.17714429]
[1767850616328,0.68229114,137.13,137.12,2.17714429]
[1767850616530,7.97426822,137.14,137.12,2.17714429]
[1767850617443,7.97426822,137.14,137.11,0.69843697]
[1767850617629,7.97426822,137.14,137.12,2.17714429]
[1767850618641,7.97426822,137.14,137.12,3.40738648]
[1767850619540,7.97426822,137.14,137.11,4.10582345]
[1767850620237,7.97426822,137.14,137.12,3.40738648]
[1767850620625,7.29197708,137.14,137.12,3.40738648]
[1767850620823,7.29149408,137.15,137.13,4.10582345]
[1767850621023,7.29084616,137.16,137.14,4.10582345]
[1767850621229,7.29084616,137.16,137.15,0.69843697]
[1767850621523,5.16820484,137.16,137.14,3.40738648]
[1767850621729,13.32,137.18,137.15,3.40738648]
[1767850621940,20.60969237,137.18,137.17,3.40738648]
[1767850622250,0.02671516,137.17,137.16,3.40738648]
[1767850622443,0.02671516,137.17,137.16,3.36544925]
[1767850623027,7.28928894,137.19,137.16,3.36544925]
[1767850623244,7.28869352,137.2,137.18,3.40738648]
[1767850623436,7.28869352,137.2,137.17,0.69067512]
[1767850623640,7.28828519,137.21,137.19,3.40738648]
[1767850623844,7.28828519,137.21,137.19,4.0980616]
[1767850624365,36.43299289,137.24,137.14,18.22949891]
[1767850624366,7.28703636,137.23,137.21,0.69067512]
[1767850624651,7.28703636,137.23,137.21,3.97806171]
[1767850624855,7.98536134,137.23,137.21,3.40738648]
[1767850625446,0.69832498,137.22,137.2,3.40738648]
[1767850625754,0.69832498,137.22,137.19,3.40738648]
[1767850626249,7.28809853,137.21,137.19,3.40738648]
[1767850627250,0.69832498,137.2,137.15,0.69067512]
[1767850627436,0.69832498,137.2,137.17,3.40738648]
[1767850628437,7.28916101,137.19,137.17,3.40738648]
[1767850632649,20.60848394,137.21,137.19,0.69067512]
[1767850632851,13.32,137.21,137.2,3.40738648]
[1767850633063,7.28779569,137.22,137.2,3.40738648]
[1767850633258,7.98612067,137.22,137.2,3.40738648]
[1767850633641,5.39082998,137.21,137.2,3.40738648]
[1767850634047,7.28779569,137.22,137.2,3.40738648]
[1767850634250,7.28779569,137.22,137.2,4.0980616]
[1767850634849,7.28779569,137.22,137.2,3.40738648]
[1767850635654,0.69832498,137.21,137.19,3.40738648]
[1767850635855,0.69832498,137.21,137.18,4.0980616]
[1767850636251,0.69832498,137.21,137.18,3.40738648]
[1767850637469,0.69832498,137.21,137.17,0.69067512]
[1767850637662,7.9867438,137.21,137.18,3.40738648]
[1767850638572,7.28770464,137.22,137.19,4.0980616]
[1767850638989,7.98602962,137.22,137.2,3.40738648]
[1767850639757,7.98602962,137.22,137.19,0.69067512]
[1767850640055,7.98602962,137.22,137.19,4.0980616]
[1767850641668,13.32,137.23,137.21,4.0980616]
[1767850641669,20.60725336,137.23,137.21,4.0980616]
[1767850641876,18.21418117,137.26,137.22,3.40738648]
[1767850641877,7.98390814,137.26,137.22,3.40738648]
[1767850642084,0.69832498,137.25,137.22,3.40738648]
[1767850642376,0.69832498,137.24,137.21,3.40738648]
[1767850643776,7.98517784,137.24,137.21,3.40738648]
[1767850646262,7.98517784,137.24,137.15,0.13003965]
[1767850646263,0.69832498,137.22,137.15,0.13003965]
[1767850646491,0.69832498,137.22,137.17,3.40738648]
[1767850646685,0.69832498,137.2,137.16,3.40738648]
[1767850647574,0.69832498,137.19,137.15,3.40738648]
[1767850648680,0.69832498,137.17,137.14,3.40738648]
[1767850650770,0.69832498,137.17,137.14,3.53742613]
[1767850650983,7.98801735,137.18,137.14,3.53742613]
[1767850652976,0.68671619,137.17,137.14,3.53742613]
[1767850653188,0.68671619,137.16,137.13,3.40738648]
[1767850654986,7.97752569,137.16,137.13,3.40738648]
[1767850655485,0.68671619,137.19,137.15,3.40738648]
[1767850655684,0.68671619,137.19,137.16,3.40738648]
[1767850656366,0.68671619,137.19,137.15,3.40738648]
[1767850656579,7.97605171,137.19,137.15,3.40738648]
[1767850658292,5.27072889,137.18,137.16,3.40738648]
[1767850658487,7.97605171,137.19,137.16,3.40738648]
[1767850658693,5.27104472,137.18,137.16,3.40738648]
[1767850658879,7.97605171,137.19,137.16,3.40738648]
[1767850659791,0.68671619,137.18,137.15,3.40738648]
[1767850660490,5.53700496,137.19,137.15,3.40738648]
[1767850660796,0.68671619,137.18,137.15,3.40738648]
[1767850661171,0.68671619,137.17,137.14,3.40738648]
[1767850661370,0.68671619,137.17,137.1,7.29370141]
[1767850661594,0.68671619,137.17,137.12,3.40738648]
[1767850661595,0.68671619,137.16,137.12,3.40738648]
[1767850662970,0.68671619,137.15,137.12,3.40738648]
[1767850664411,7.97810651,137.15,137.12,3.40738648]
[1767850665295,7.97810651,137.15,137.08,18.39576495]
[1767850665296,0.68671619,137.14,137.11,3.40738648]
[1767850667500,0.68671619,137.14,137.12,3.40738648]
[1767850669418,7.97810651,137.15,137.12,3.40738648]
[1767850669903,0.68671619,137.15,137.12,3.40738648]
[1767850670601,0.68671619,137.15,137.13,3.40738648]
[1767850670899,7.97803428,137.15,137.13,3.40738648]
[1767850676201,7.97764985,137.16,137.13,3.40738648]
[1767850676386,7.97764985,137.16,137.14,3.40738648]
[1767850677987,0.68671619,137.18,137.15,3.40738648]
[1767850678188,5.25965118,137.17,137.16,3.40738648]
[1767850679417,14.00671619,137.19,137.17,3.40738648]
[1767850679418,20.60923967,137.19,137.17,3.40738648]
[1767850679908,21.29595586,137.19,137.17,3.40738648]
[1767850680204,0.68671619,137.18,137.17,3.40738648]
[1767850680587,20.60923967,137.19,137.17,2.17913066]
[1767850682013,13.32,137.19,137.18,2.17913066]
[1767850682201,7.28869984,137.2,137.18,2.86584685]
[1767850682410,7.28869984,137.2,137.19,2.17913066]
[1767850682599,0.65442593,137.22,137.19,2.17913066]
[1767850682800,0.65442593,137.21,137.19,2.17913066]
[1767850682997,7.94280736,137.21,137.19,2.17913066]
[1767850684521,7.94280736,137.21,137.18,2.86584685]
[1767850691318,17.23160715,137.2,137.18,2.86584685]
[1767850691518,7.28864492,137.2,137.18,2.86584685]
[1767850694430,7.28864492,137.2,137.18,0.68671619]
[1767850694625,7.28864492,137.2,137.18,2.86584685]
[1767850701629,7.28864492,137.2,137.18,0.68671619]
[1767850701832,5.80950187,137.19,137.16,0.65271088]
[1767850702029,0.71773684,137.19,137.16,2.83184154]
[1767850703131,8.00727298,137.19,137.16,2.83184154]
[1767850703640,7.28953614,137.19,137.17,0.65271088]
[1767850704142,7.28953614,137.19,137.17,2.83184154]
[1767850713350,7.28834048,137.21,137.19,0.68671619]
[1767850713560,9.96079483,137.2,137.19,2.86584685]
[1767850713766,7.28834048,137.21,137.19,2.86584685]
[1767850714471,7.9958086,137.21,137.19,2.17913066]
[1767850719157,7.99450448,137.23,137.21,0.68671619]
[1767850719358,7.99450448,137.23,137.21,2.86584685]
[1767850720437,0.28432314,137.25,137.22,2.89980129]
[1767850721549,7.28597449,137.25,137.22,2.89980129]
[1767850722240,7.28597449,137.25,137.23,2.17913066]
[1767850722440,7.28597449,137.25,137.23,2.89980129]
[1767850723753,30.05477676,137.27,137.24,0.72067063]
[1767850723956,7.28567048,137.26,137.24,2.17913066]
[1767850724158,7.9931386,137.26,137.24,2.17913066]
[1767850724853,7.9931386,137.26,137.23,2.17913066]
[1767850725456,7.9931386,137.26,137.21,13.32]
[1767850725457,0.70746812,137.25,137.21,2.17913066]
[1767850725843,0.70746812,137.25,137.21,2.89980129]
[1767850725844,4.87849137,137.24,137.21,2.89980129]
[1767850726043,0.70746812,137.25,137.22,2.17913066]
[1767850726358,5.57873055,137.25,137.22,2.17913066]
[1767850726663,0.70746812,137.24,137.22,2.17913066]
[1767850727154,0.70746812,137.24,137.21,2.17913066]
[1767850727360,7.99503552,137.22,137.19,2.89980129]
[1767850728167,7.99503552,137.22,137.2,2.17913066]
[1767850730368,0.70746812,137.22,137.19,0.72067063]
[1767850730567,25.78833728,137.24,137.21,2.17913066]
[1767850730568,7.99449185,137.24,137.21,2.17913066]
[1767850730864,4.87602549,137.23,137.21,2.17913066]
[1767850731067,7.99449185,137.24,137.21,2.17913066]
[1767850731270,7.99449185,137.24,137.21,2.89980129]
[1767850731659,0.70746812,137.24,137.22,2.17913066]
[1767850732254,7.99413496,137.24,137.22,2.17913066]
[1767850734562,0.70746812,137.23,137.21,2.17913066]
[1767850734969,7.99459443,137.23,137.2,2.89980129]
[1767850735377,7.99459443,137.23,137.2,2.17913066]
[1767850735378,0.70746812,137.22,137.2,2.17913066]
[1767850739084,7.99459443,137.23,137.2,2.89980129]
[1767850740482,7.99459443,137.23,137.2,4.12361917]
[1767850740660,7.99459443,137.23,137.21,3.40294854]
[1767850740862,0.70746812,137.26,137.22,4.12361917]
[1767850741063,0.70746812,137.26,137.23,3.40294854]
[1767850741064,5.66345004,137.25,137.23,3.40294854]
[1767850741290,4.95598192,137.24,137.23,3.40294854]
[1767850741484,7.99308574,137.26,137.23,4.12361917]
[1767850741793,4.86583139,137.25,137.23,4.12361917]
[1767850742159,4.86583139,137.25,137.23,3.40294854]
[1767850743466,12.15202158,137.25,137.23,3.40294854]
[1767850743681,7.28619019,137.25,137.23,3.40294854]
[1767850745886,7.99315153,137.26,137.23,3.40294854]
[1767850751079,7.28568341,137.26,137.24,4.08825551]
[1767850751281,7.28568341,137.26,137.24,3.40294854]
[1767850751678,7.95694822,137.26,137.24,3.40294854]
[1767850752094,7.95641711,137.27,137.25,3.40294854]
[1767850752299,0.67126481,137.27,137.25,3.40294854]
[1767850752495,5.53822786,137.27,137.25,3.40294854]
[1767850753188,7.95587826,137.28,137.26,3.40294854]
[1767850753771,0.67126481,137.27,137.26,3.40294854]
[1767850753978,0.67126481,137.27,137.25,3.40294854]
[1767850754589,7.28544368,137.26,137.25,3.40294854]
[1767850757997,0.67126481,137.26,137.25,3.40294854]
[1767850760701,7.95670849,137.26,137.25,3.40294854]
[1767850761698,7.95670849,137.26,137.23,0.68530697]
[1767850761897,7.95670849,137.26,137.25,3.40294854]
[1767850764197,17.64282677,137.26,137.25,3.40294854]
[1767850765618,18.49527885,137.28,137.25,3.40294854]
[1767850765832,18.49527885,137.28,137.26,3.40294854]
[1767850766817,7.28491294,137.27,137.26,3.40294854]
[1767850767723,7.95617775,137.27,137.26,3.40294854]
[1767850772329,0.65479617,137.26,137.24,0.68530697]
[1767850772523,25.4971953,137.27,137.25,3.40294854]
[1767850772726,25.4971953,137.27,137.24,0.66559451]
[1767850772916,25.4971953,137.27,137.26,3.40294854]
[1767850773941,7.28491294,137.27,137.25,0.66559451]
[1767850774511,0.75479617,137.32,137.26,3.40294854]
[1767850774707,0.75479617,137.32,137.31,3.40294854]
[1767850774930,0.75479617,137.32,137.28,0.61038756]
[1767850775112,0.75479617,137.32,137.3,3.40294854]
[1767850775313,0.75479617,137.32,137.28,0.61038756]
[1767850775513,0.75479617,137.32,137.3,1e-08]
[1767850775514,0.93911931,137.31,137.3,1e-08]
[1767850775732,25.58791144,137.32,137.28,0.61038756]
[1767850775934,25.58791144,137.32,137.3,3.40294854]
[1767850776118,25.58791144,137.32,137.28,0.61038756]
[1767850776317,18.30565103,137.32,137.28,0.61038756]
[1767850776723,7.38173013,137.33,137.28,0.61038756]
[1767850777716,0.65479617,137.31,137.28,0.61038756]
[1767850778026,0.1,137.33,137.28,0.61038756]
[1767850779034,18.20565103,137.32,137.28,0.61038756]
[1767850779234,7.38173013,137.33,137.28,0.61038756]
[1767850779935,0.65479617,137.32,137.28,0.61038756]
[1767850780138,7.38173013,137.33,137.28,0.61038756]
[1767850780538,18.20565103,137.32,137.28,0.61038756]
[1767850781717,7.38173013,137.33,137.28,0.61038756]
[1767850782129,7.48073013,137.33,137.28,0.61038756]
[1767850782538,25.68505547,137.33,137.28,0.61038756]
[1767850785923,25.58605547,137.33,137.28,0.61038756]
[1767850786524,25.90901716,137.33,137.28,0.61038756]
[1767850793354,0.10123961,137.32,137.28,0.61038756]
[1767850796151,25.58605547,137.33,137.28,0.61038756]
[1767850796152,25.9112794,137.33,137.28,0.61038756]
[1767850796744,0.099,137.32,137.26,0.66559451]
[1767850799250,0.099,137.32,137.27,0.66559451]
[1767850803536,25.58605547,137.33,137.28,0.70943766]
[1767850803853,7.38173013,137.33,137.28,0.70943766]
[1767850804239,7.48073013,137.33,137.28,0.70943766]
[1767850804647,0.32296169,137.32,137.27,0.70943766]
[1767850805856,0.32074447,137.3,137.27,0.70943766]
[1767850806761,0.10343466,137.29,137.24,0.70943766]
[1767850806950,0.10343466,137.29,137.23,0.70943766]
[1767850807139,0.099,137.25,137.15,0.70943766]
[1767850807346,0.32296169,137.23,137.15,0.70943766]
[1767850807851,7.38880701,137.22,137.17,0.70943766]
[1767850808238,0.32074447,137.21,137.17,0.70943766]
[1767850808836,7.60885526,137.21,137.17,0.70943766]
[1767850809036,7.28811079,137.21,137.17,0.70943766]
[1767850810562,7.3865674,137.22,137.17,0.70943766]
[1767850812964,0.099,137.22,137.17,0.70943766]
[1767850814070,0.099,137.22,137.15,0.70943766]
[1767850814942,0.099,137.22,137.16,0.70943766]
[1767850815264,0.099,137.22,137.14,7.49165688]
[1767850815265,0.32296169,137.21,137.14,7.49165688]
[1767850815447,0.32296169,137.21,137.15,0.70943766]
[1767850816455,0.32296169,137.21,137.14,8.2012406]
[1767850817568,0.28432314,137.22,137.14,8.2012406]
[1767850817569,0.10123961,137.19,137.14,8.2012406]
[1767850819152,0.10123961,137.19,137.15,0.70943766]
[1767850820243,7.28809853,137.21,137.15,8.00058381]
[1767850820450,7.28809853,137.21,137.16,0.70943766]
[1767850820860,7.61332246,137.21,137.16,0.70943766]
[1767850821751,0.099,137.2,137.16,0.70943766]
[1767850824848,0.32522393,137.21,137.17,0.70943766]
[1767850825055,0.32522393,137.22,137.17,0.70943766]
[1767850825865,7.61301927,137.22,137.17,0.70943766]
[1767850827178,7.61301927,137.22,137.18,0.70943766]
[1767850830161,0.099,137.21,137.18,0.70943766]
[1767850832975,7.3865674,137.22,137.18,0.70943766]
[1767850836463,0.099,137.22,137.18,0.70943766]
[1767850837764,7.61172932,137.24,137.19,0.69109362]
[1767850843884,0.099,137.23,137.19,0.69109362]
[1767850844267,0.099,137.23,137.18,7.28962367]
[1767850844268,0.099,137.23,137.18,7.98071729]
[1767850846090,0.099,137.23,137.19,0.69109362]
[1767850862786,0.099,137.23,137.18,0.65265003]
[1767850863599,0.32296169,137.22,137.16,0.65265003]
[1767850864301,0.10123961,137.21,137.14,0.85265003]
[1767850864598,0.32074447,137.2,137.14,0.2]
[1767850864802,0.10343466,137.18,137.14,0.2]
[1767850866214,0.31857137,137.17,137.12,0.65265003]
[1767850866677,0.31857137,137.17,137.1,0.65265003]
[1767850867310,0.10558603,137.15,137.1,0.65265003]
[1767850869216,7.39722423,137.15,137.1,0.65265003]
[1767850869507,0.31644152,137.14,137.1,0.65265003]
[1767850874104,7.61686213,137.15,137.1,0.65265003]
[1767850874518,0.099,137.14,137.1,0.65265003]
[1767850874802,0.32522393,137.15,137.1,0.65265003]
[1767850875014,18.55211223,137.16,137.11,0.69362053]
[1767850875394,18.2268883,137.16,137.11,0.69362053]
[1767850880590,18.54984999,137.16,137.11,0.69362053]
[1767850882294,25.84060531,137.16,137.11,0.69362053]
[1767850885000,0.10123961,137.15,137.11,0.69362053]
[1767850886795,18.2268883,137.16,137.11,0.69362053]
[1767850888726,25.51764362,137.16,137.11,0.69362053]
[1767850894037,18.3258883,137.16,137.11,0.69362053]
[1767850895549,0.32296169,137.15,137.11,0.69362053]
[1767850896024,7.29181857,137.14,137.11,0.69362053]
[1767850899740,0.10123961,137.14,137.11,0.69362053]
[1767850900043,0.10123961,137.14,137.1,0.65997576]
[1767850902450,25.84531716,137.15,137.1,0.65997576]
[1767850908935,0.099,137.14,137.1,0.65997576]
[1767850913137,0.32296169,137.13,137.09,0.2]
[1767850913774,0.32296169,137.13,137.09,0.85997576]
[1767850914640,7.29288214,137.12,137.09,0.85997576]
[1767850914948,0.32074447,137.11,137.09,1e-08]
[1767850915262,0.32074447,137.11,137.06,0.85997576]
[1767850915263,0.10343466,137.1,137.06,0.85997576]
[1767850915741,0.10343466,137.1,137.07,0.65997576]
[1767850917293,7.29447808,137.09,137.07,0.65997576]
[1767850919063,7.29447808,137.09,137.06,0.85997576]
[1767850920562,7.29447808,137.09,137.07,0.65997576]
[1767850920909,7.39761302,137.1,137.07,0.65997576]
[1767850922068,0.31857137,137.09,137.06,0.87277272]
[1767850922853,0.32522393,137.1,137.06,0.87277272]
[1767850923769,0.32522393,137.1,137.04,0.2]
[1767850923968,0.099,137.08,137.04,0.2]
[1767850924147,0.22396169,137.07,137.04,0.2]
[1767850924347,0.22396169,137.07,137.04,0.87277272]
[1767850924878,4.92922019,137.08,137.04,0.87277272]
[1767850925064,12.22471469,137.08,137.04,0.87277272]
[1767850925255,7.2954945,137.08,137.05,0.67277272]
[1767850925758,0.22396169,137.07,137.04,0.2]
[1767850925958,0.22396169,137.07,137.03,0.2]
[1767850926271,0.10024961,137.06,137.02,0.87277272]
[1767850928088,7.39632432,137.06,137.02,0.87277272]
[1767850928268,7.39632432,137.06,137.02,0.2]
[1767850928269,0.22272457,137.05,137.02,0.2]
[1767850929161,0.10147436,137.04,137.02,1e-08]
[1767850930166,0.22151207,137.03,137.02,1e-08]
[1767850930760,7.52236345,137.04,137.02,1e-08]
[1767850935487,25.76417368,137.05,137.02,1e-08]
[1767850936983,0.099,137.04,137.02,1e-08]
[1767850939161,25.76417368,137.05,137.02,0.65404004]
[1767850939576,0.099,137.04,137.02,1e-08]
[1767850944085,25.76417368,137.05,137.02,1e-08]
[1767850949084,0.099,137.04,137.02,1e-08]
[1767850951491,0.099,137.04,136.98,13.32]
[1767850951682,0.2626365,137.02,136.96,0.2]
[1767850952273,0.65354424,137.01,136.96,0.2]
[1767850953377,0.65354424,137.01,136.96,1e-08]
[1767850953571,0.65023342,136.98,136.96,1e-08]
[1767850955598,0.65354424,136.99,136.96,1e-08]
[1767850957996,7.62279832,136.98,136.96,1e-08]
[1767850958173,25.87363785,136.98,136.93,14.30542959]
[1767850958374,0.65354424,136.97,136.93,14.30542959]
[1767850959998,7.30140186,136.96,136.93,14.30542959]
[1767850960180,7.30140186,136.96,136.93,14.96147817]
[1767850960380,7.30140186,136.96,136.94,0.65604858]
[1767850962796,13.62432314,136.97,136.91,0.65604858]
[1767850963297,0.65354424,136.96,136.91,0.65604858]
[1767850963494,0.65354424,136.94,136.91,0.65604858]
[1767850964591,0.65354424,136.94,136.9,0.65604858]
[1767850964789,0.65354424,136.92,136.89,0.65604858]
[1767850964984,7.30300153,136.93,136.89,0.65604858]
[1767850965192,7.95654577,136.93,136.89,0.65604858]
[1767850966480,0.65354424,136.92,136.89,0.65604858]